fUSD/lending_fUSD_20241121
["ID","MTS","AMOUNT","RATE_DAILY","PERIOD"]
[342855229,1732183866842,-500.0,0.00041369,18]
[342855230,1732183866852,-500.0,0.00041369,18]
[342855231,1732183866861,-500.0,0.00041369,18]
[342855232,1732183866870,-500.0,0.00041369,18]
[342855233,1732183866880,-500.0,0.00041369,18]
[342855234,1732183866889,-500.0,0.00041369,18]
[342855235,1732183866899,-500.0,0.00041369,18]
[342855236,1732183866908,-500.0,0.00041369,18]
[342855237,1732183866917,-500.0,0.00041369,18]
[342855238,1732183866927,-500.0,0.00041369,18]
[342855239,1732183866937,-500.0,0.00041369,18]
[342855240,1732183866947,-1525.63,0.00041369,18]
[342855241,1732183866957,-734.08,0.00041369,18]
[342855242,1732183866967,-1564.67,0.00041369,18]
[342855243,1732183866978,-976.13,0.00041369,18]
[342855244,1732183866987,-151.0,0.00041369,14]
[342855245,1732183866997,-930.1,0.00041369,18]
[342855246,1732183867006,-151.0,0.00041369,14]
[342855247,1732183867016,-500.0,0.00041369,18]
[342855248,1732183867026,-1441.21,0.00041369,18]
[342855249,1732183867035,-151.0,0.00041369,14]
[342855250,1732183867044,-169.871094,0.00041369,14]
[342855251,1732183867053,-500.0,0.00041369,18]
[342855252,1732183867062,-500.0,0.00041369,18]
[342855253,1732183867071,-1337.48,0.00041369,18]
[342855254,1732183867085,-163.75689238,0.00041369,18]
[342855255,1732183867094,-500.0,0.00041369,18]
[342855256,1732183867103,-500.0,0.00041369,18]
[342855257,1732183867112,-500.0,0.00041369,18]
[342855258,1732183867123,-500.0,0.00041369,18]
[342855259,1732183867131,-500.0,0.00041369,18]
[342855260,1732183867141,-1370.79,0.00041369,18]
[342855261,1732183867150,-500.0,0.00041369,18]
[342855262,1732183867161,-1737.71,0.00041369,18]
[342855263,1732183867170,-500.0,0.00041369,18]
[342855264,1732183867180,-605.4,0.00041369,18]
[342855265,1732183867190,-500.0,0.00041369,18]
[342855266,1732183867199,-1343.82,0.00041369,18]
[342855267,1732183867208,-2046.39,0.00041369,18]
[342855268,1732183867217,-1707.18,0.00041369,18]
[342855269,1732183867227,-510.22,0.00041369,18]
[342855270,1732183867236,-500.0,0.00041369,18]
[342855271,1732183867245,-500.0,0.00041369,18]
[342855272,1732183867254,-1707.15,0.00041369,18]
[342855273,1732183867263,-500.0,0.00041369,18]
[342855274,1732183867272,-500.0,0.00041369,18]
[342855275,1732183867281,-500.0,0.00041369,18]
[342855276,1732183867292,-500.0,0.00041369,18]
[342855277,1732183867300,-500.0,0.00041369,18]
[342855278,1732183867310,-1766.91,0.00041369,18]
[342855279,1732183867319,-500.0,0.00041369,18]
[342855280,1732183867328,-622.1914489,0.00041369,18]
[342855281,1732183867337,-500.0,0.00041369,18]
[342855282,1732183867346,-500.0,0.00041369,18]
[342855283,1732183867356,-500.0,0.00041369,18]
[342855284,1732183867365,-500.0,0.00041369,18]
[342855285,1732183867375,-500.0,0.00041369,18]
[342855286,1732183867386,-1483.27,0.00041369,18]
[342855287,1732183867395,-654.56,0.00041369,18]
[342855288,1732183867404,-527.82,0.00041369,18]
[342855289,1732183867413,-500.0,0.00041369,18]
[342855290,1732183867422,-500.0,0.00041369,18]
[342855291,1732183867432,-404.86,0.00041369,18]
[342855292,1732183867443,-538.98,0.00041369,18]
[342855293,1732183867454,-767.8,0.00041369,18]
[342855294,1732183867463,-500.0,0.00041369,18]
[342855295,1732183867472,-500.0,0.00041369,18]
[342855296,1732183867483,-500.0,0.00041369,18]
[342855297,1732183867492,-560.46,0.00041369,18]
[342855298,1732183867502,-500.0,0.00041369,18]
[342855299,1732183867512,-3263.97,0.00041369,18]
[342855300,1732183867521,-734.35,0.00041369,18]
[342855301,1732183867530,-1795.65,0.00041369,18]
[342855302,1732183867539,-745.42,0.00041369,18]
[342855303,1732183867549,-500.0,0.00041369,18]
[342855304,1732183867558,-500.0,0.00041369,18]
[342855305,1732183867567,-940.46,0.00041369,18]
[342855306,1732183867576,-500.0,0.00041369,18]
[342855307,1732183867585,-500.0,0.00041369,18]
[342855308,1732183867595,-500.0,0.00041369,18]
[342855309,1732183867604,-500.0,0.00041369,18]
[342855310,1732183867613,-511.66,0.00041369,18]
[342855311,1732183867622,-500.0,0.00041369,18]
[342855312,1732183867631,-500.0,0.00041369,18]
[342855313,1732183867640,-2743.59,0.00041369,18]
[342855314,1732183867649,-2480.27,0.00041369,18]
[342855315,1732183867659,-500.0,0.00041369,18]
[342855316,1732183867668,-673.12,0.00041369,18]
[342855317,1732183867677,-150.0,0.00041369,18]
[342855318,1732183867688,-500.0,0.00041369,18]
[342855319,1732183867697,-500.0,0.00041369,18]
[342855320,1732183867706,-500.0,0.00041369,18]
[342855321,1732183867715,-538.57,0.00041369,18]
[342855322,1732183867725,-1133.11,0.00041369,18]
[342855323,1732183867734,-500.0,0.00041369,18]
[342855324,1732183867744,-2483.43,0.00041369,18]
[342855325,1732183867753,-500.0,0.00041369,18]
[342855326,1732183867762,-1970.43,0.00041369,18]
[342855327,1732183867771,-1322.48,0.00041369,18]
[342855328,1732183867781,-223.01171886,0.00041369,18]
[342855329,1732183867790,-500.0,0.00041369,18]
[342855330,1732183867800,-1000.0,0.00041369,120]
[342855331,1732183867809,-500.0,0.00041369,18]
[342855332,1732183867818,-500.0,0.00041369,18]
[342855333,1732183867828,-500.0,0.00041369,18]
[342855334,1732183867837,-598.45,0.00041369,18]
[342855335,1732183867846,-500.0,0.00041369,18]
[342855336,1732183867856,-500.0,0.00041369,18]
[342855337,1732183867866,-545.13,0.00041369,18]
[342855338,1732183867875,-500.0,0.00041369,18]
[342855339,1732183867885,-500.0,0.00041369,18]
[342855340,1732183867894,-500.0,0.00041369,18]
[342855341,1732183867903,-500.0,0.00041369,18]
[342855342,1732183867913,-2367.61,0.00041369,18]
[342855343,1732183867923,-541.91,0.00041369,18]
[342855344,1732183867933,-500.0,0.00041369,18]
[342855345,1732183867943,-500.0,0.00041369,18]
[342855346,1732183867953,-500.0,0.00041369,18]
[342855347,1732183867963,-590.64,0.00041369,18]
[342855348,1732183867972,-500.0,0.00041369,18]
[342855349,1732183867982,-694.83,0.00041369,18]
[342855350,1732183867991,-500.0,0.00041369,18]
[342855351,1732183868000,-2814.19,0.00041369,18]
[342855352,1732183868010,-500.0,0.00041369,18]
[342855353,1732183868020,-4189.14,0.00041369,18]
[342855354,1732183868030,-500.0,0.00041369,18]
[342855355,1732183868042,-1103.25,0.00041369,18]
[342855356,1732183868054,-500.0,0.00041369,18]
[342855357,1732183868064,-541.83,0.00041369,18]
[342855358,1732183868075,-1128.81,0.00041369,18]
[342855359,1732183868085,-500.0,0.00041369,18]
[342855360,1732183868097,-500.0,0.00041369,18]
[342855361,1732183868107,-500.0,0.00041369,18]
[342855362,1732183868117,-709.4,0.00041369,18]
[342855363,1732183868127,-500.0,0.00041369,18]
[342855364,1732183868137,-1052.51,0.00041369,18]
[342855365,1732183868147,-500.0,0.00041369,18]
[342855366,1732183868157,-645.52,0.00041369,18]
[342855367,1732183868168,-802.55,0.00041369,18]
[342855368,1732183868178,-660.83,0.00041369,18]
[342855369,1732183868189,-533.38246897,0.00041369,18]
[342855370,1732183868199,-553.25,0.00041369,18]
[342855371,1732183868209,-1273.09,0.00041369,18]
[342855372,1732183868219,-500.0,0.00041369,18]
[342855373,1732183868229,-500.0,0.00041369,18]
[342855374,1732183868239,-674.18,0.00041369,18]
[342855375,1732183868249,-500.0,0.00041369,18]
[342855376,1732183868259,-5306.57,0.00041369,18]
[342855377,1732183868269,-500.0,0.00041369,18]
[342855378,1732183868279,-500.0,0.00041369,18]
[342855379,1732183868289,-812.39,0.00041369,18]
[342855380,1732183868299,-500.0,0.00041369,18]
[342855381,1732183868309,-1366.9,0.00041369,18]
[342855382,1732183868318,-1459.76,0.00041369,18]
[342855383,1732183868327,-500.0,0.00041369,18]
[342855384,1732183868337,-500.0,0.00041369,18]
[342855385,1732183868347,-2557.43,0.00041369,18]
[342855386,1732183868357,-500.0,0.00041369,18]
[342855387,1732183868367,-500.0,0.00041369,18]
[342855388,1732183868376,-500.0,0.00041369,18]
[342855389,1732183868386,-500.0,0.00041369,18]
[342855390,1732183868396,-500.0,0.00041369,18]
[342855391,1732183868406,-649.47,0.00041369,18]
[342855392,1732183868416,-500.0,0.00041369,18]
[342855393,1732183868426,-1324.61,0.00041369,18]
[342855394,1732183868436,-500.0,0.00041369,18]
[342855395,1732183868446,-500.0,0.00041369,18]
[342855396,1732183868455,-500.0,0.00041369,18]
[342855397,1732183868465,-1232.13,0.00041369,18]
[342855398,1732183868475,-500.0,0.00041369,18]
[342855399,1732183868484,-500.0,0.00041369,18]
[342855400,1732183868494,-1000.0,0.00041369,2]
[342855401,1732183868504,-2534.42,0.00041369,18]
[342855402,1732183868516,-500.0,0.00041369,18]
[342855403,1732183868526,-3066.9,0.00041369,18]
[342855404,1732183868536,-500.0,0.00041369,18]
[342855405,1732183868545,-500.0,0.00041369,18]
[342855406,1732183868555,-212.63,0.00041369,18]
[342855407,1732183868564,-500.0,0.00041369,18]
[342855408,1732183868575,-877.88,0.00041369,18]
[342855409,1732183868585,-639.13,0.00041369,18]
[342855410,1732183868595,-950.97,0.00041369,18]
[342855411,1732183868605,-821.2,0.00041369,18]
[342855412,1732183868615,-500.0,0.00041369,18]
[342855413,1732183868631,-500.0,0.00041369,18]
[342855414,1732183868647,-500.0,0.00041369,18]
[342855415,1732183868661,-1421.98,0.00041369,18]
[342855416,1732183868675,-151.0,0.00041369,14]
[342855417,1732183868687,-151.0,0.00041369,14]
[342855418,1732183868698,-500.0,0.00041369,18]
[342855419,1732183868708,-151.0,0.00041369,14]
[342855420,1732183868718,-1534.55,0.00041369,18]
[342855421,1732183868729,-151.0,0.00041369,14]
[342855422,1732183868739,-500.0,0.00041369,18]
[342855423,1732183868749,-954.65,0.00041369,18]
[342855424,1732183868759,-1649.34,0.00041369,18]
[342855425,1732183868769,-500.0,0.00041369,18]
[342855426,1732183868780,-500.0,0.00041369,18]
[342855427,1732183868793,-2247.93173832,0.00041369,18]
[342855428,1732183870143,-154.00826168,0.00041369,18]
[342855429,1732183870154,-500.0,0.00041369,18]
[342855430,1732183870166,-500.0,0.00041369,18]
[342855431,1732183870184,-500.0,0.00041369,18]
[342855432,1732183870199,-983.28,0.00041369,18]
[342855433,1732183870216,-500.0,0.00041369,18]
[342855434,1732183870227,-1399.96,0.00041369,18]
[342855435,1732183870236,-151.0,0.00041369,14]
[342855436,1732183870246,-293.30398992,0.00041369,18]
[342855437,1732183870616,-500.0,0.00041095,18]
[342855438,1732183870625,-500.0,0.00041095,18]
[342855439,1732183870635,-206.69601008,0.00041369,18]
[342855440,1732183870644,-151.0,0.00041369,14]
[342855441,1732183870653,-151.0,0.00041369,14]
[342855442,1732183870663,-151.0,0.00041369,14]
[342855443,1732183870672,-500.0,0.00041369,18]
[342855444,1732183870681,-500.0,0.00041369,18]
[342855445,1732183870692,-607.59,0.00041369,18]
[342855446,1732183870701,-2108.59,0.00041369,18]
[342855447,1732183870711,-500.0,0.00041369,18]
[342855448,1732183870720,-500.0,0.00041369,18]
[342855449,1732183870729,-993.14,0.00041369,18]
[342855450,1732183870739,-1061.54,0.00041369,18]
[342855451,1732183870748,-707.41,0.00041369,18]
[342855452,1732183870757,-500.0,0.00041369,18]
[342855453,1732183870767,-500.0,0.00041369,18]
[342855454,1732183870776,-500.0,0.00041369,18]
[342855455,1732183870786,-2789.85,0.00041369,18]
[342855456,1732183870795,-3892.35,0.00041369,18]
[342855457,1732183870805,-2253.19,0.00041369,18]
[342855458,1732183870814,-500.0,0.00041369,18]
[342855459,1732183870825,-500.0,0.00041369,18]
[342855460,1732183870834,-500.0,0.00041369,18]
[342855461,1732183870844,-500.0,0.00041369,18]
[342855462,1732183870854,-500.0,0.00041369,18]
[342855463,1732183870863,-2678.13,0.00041369,18]
[342855464,1732183870873,-500.0,0.00041369,18]
[342855465,1732183870883,-500.0,0.00041369,18]
[342855466,1732183870893,-1367.2,0.00041369,18]
[342855467,1732183870903,-649.09,0.00041369,18]
[342855468,1732183870913,-500.0,0.00041369,18]
[342855469,1732183870923,-500.0,0.00041369,18]
[342855470,1732183870932,-306.32027558,0.00041369,18]
[342855471,1732183870943,-1181.24,0.00041369,18]
[342855472,1732183870953,-500.0,0.00041369,18]
[342855473,1732183870963,-500.0,0.00041369,18]
[342855474,1732183870973,-1700.3,0.00041369,18]
[342855475,1732183870983,-500.0,0.00041369,18]
[342855476,1732183870992,-236.85,0.00041369,18]
[342855477,1732183871002,-560.78,0.00041369,18]
[342855478,1732183871011,-784.39,0.00041369,18]
[342855479,1732183871021,-500.0,0.00041369,18]
[342855480,1732183871030,-500.0,0.00041369,18]
[342855481,1732183871041,-500.0,0.00041369,18]
[342855482,1732183871051,-1666.44,0.00041369,18]
[342855483,1732183871060,-1289.09,0.00041369,18]
[342855484,1732183871070,-912.19,0.00041369,18]
[342855485,1732183871082,-500.0,0.00041369,18]
[342855486,1732183871094,-1413.9,0.00041369,18]
[342855487,1732183871103,-947.98,0.00041369,18]
[342855488,1732183871113,-241.542799,0.00041369,14]
[342855489,1732183871123,-879.54,0.00041369,18]
[342855490,1732183871132,-1168.64,0.00041369,18]
[342855491,1732183871141,-1148.21,0.00041369,18]
[342855492,1732183871151,-500.0,0.00041369,18]
[342855493,1732183871161,-1553.84,0.00041369,18]
[342855494,1732183871171,-500.0,0.00041369,18]
[342855495,1732183871181,-960.87,0.00041369,18]
[342855496,1732183871191,-714.05,0.00041369,18]
[342855497,1732183871201,-500.0,0.00041369,18]
[342855498,1732183871211,-1301.82,0.00041369,18]
[342855499,1732183871221,-500.0,0.00041369,18]
[342855500,1732183871230,-764.94,0.00041369,18]
[342855501,1732183871240,-500.0,0.00041369,18]
[342855502,1732183871249,-5126.99,0.00041369,18]
[342855503,1732183871259,-500.0,0.00041369,18]
[342855504,1732183871268,-1874.55,0.00041369,18]
[342855505,1732183871278,-789.19,0.00041369,18]
[342855506,1732183871287,-500.0,0.00041369,18]
[342855507,1732183871297,-708.08,0.00041369,18]
[342855508,1732183871306,-500.0,0.00041369,18]
[342855509,1732183871315,-500.0,0.00041369,18]
[342855510,1732183871325,-500.0,0.00041369,18]
[342855511,1732183871334,-500.0,0.00041369,18]
[342855512,1732183871343,-1571.72,0.00041369,18]
[342855513,1732183871352,-500.0,0.00041369,18]
[342855514,1732183871362,-500.0,0.00041369,18]
[342855515,1732183871371,-500.0,0.00041369,18]
[342855516,1732183871381,-2183.46,0.00041369,18]
[342855517,1732183871390,-659.75,0.00041369,18]
[342855518,1732183871399,-700.78,0.00041369,18]
[342855519,1732183871408,-579.5,0.00041369,18]
[342855520,1732183871418,-536.42,0.00041369,18]
[342855521,1732183871427,-571.69,0.00041369,18]
[342855522,1732183871437,-313.03,0.00041369,18]
[342855523,1732183871446,-1350.63,0.00041369,18]
[342855524,1732183871455,-500.0,0.00041369,18]
[342855525,1732183871465,-500.0,0.00041369,18]
[342855526,1732183871474,-1104.02,0.00041369,18]
[342855527,1732183871483,-1216.73,0.00041369,18]
[342855528,1732183871493,-500.0,0.00041369,18]
[342855529,1732183871502,-794.44,0.00041369,18]
[342855530,1732183871511,-2707.42,0.00041369,18]
[342855531,1732183871521,-500.0,0.00041369,18]
[342855532,1732183871530,-500.0,0.00041369,18]
[342855533,1732183871540,-500.0,0.00041369,18]
[342855534,1732183871549,-320.72822842,0.00041369,18]
[342855535,1732183871558,-500.0,0.00041369,18]
[342855536,1732183871567,-500.0,0.00041369,18]
[342855537,1732183871576,-611.1705353,0.00041369,18]
[342855538,1732183871586,-2664.8,0.00041369,18]
[342855539,1732183871595,-500.0,0.00041369,18]
[342855540,1732183871604,-689.69,0.00041369,18]
[342855541,1732183871613,-500.0,0.00041369,18]
[342855542,1732183871623,-500.0,0.00041369,18]
[342855543,1732183871633,-1694.98,0.00041369,18]
[342855544,1732183871643,-1357.31,0.00041369,18]
[342855545,1732183871653,-500.0,0.00041369,18]
[342855546,1732183871662,-500.0,0.00041369,18]
[342855547,1732183871672,-500.0,0.00041369,18]
[342855548,1732183871681,-500.0,0.00041369,18]
[342855549,1732183871693,-2262.73,0.00041369,18]
[342855550,1732183871702,-500.0,0.00041369,18]
[342855551,1732183871712,-500.0,0.00041369,18]
[342855552,1732183871722,-500.0,0.00041369,18]
[342855553,1732183871732,-2711.27,0.00041369,18]
[342855554,1732183871741,-1298.28,0.00041369,18]
[342855555,1732183871750,-500.0,0.00041369,18]
[342855556,1732183871760,-500.0,0.00041369,18]
[342855557,1732183871770,-767.2,0.00041369,18]
[342855558,1732183871781,-500.0,0.00041369,18]
[342855559,1732183871792,-500.0,0.00041369,18]
[342855560,1732183871801,-500.0,0.00041369,18]
[342855561,1732183871810,-500.0,0.00041369,18]
[342855562,1732183871819,-500.0,0.00041369,18]
[342855563,1732183871829,-500.0,0.00041369,18]
[342855564,1732183871838,-500.0,0.00041369,18]
[342855565,1732183871848,-737.58,0.00041369,18]
[342855566,1732183871858,-500.0,0.00041369,18]
[342855567,1732183871867,-500.0,0.00041369,18]
[342855568,1732183871877,-579.54,0.00041369,18]
[342855569,1732183871886,-1124.03,0.00041369,18]
[342855570,1732183871895,-879.07,0.00041369,18]
[342855571,1732183871905,-500.0,0.00041369,18]
[342855572,1732183871915,-500.0,0.00041369,18]
[342855573,1732183871924,-500.0,0.00041369,18]
[342855574,1732183871934,-3068.94,0.00041369,7]
[342855575,1732183871946,-1206.45,0.00041369,18]
[342855576,1732183871955,-500.0,0.00041369,18]
[342855577,1732183871964,-500.0,0.00041369,18]
[342855578,1732183871974,-500.0,0.00041369,18]
[342855579,1732183871983,-500.0,0.00041369,18]
[342855580,1732183871992,-544.84,0.00041369,18]
[342855581,1732183872002,-663.84,0.00041369,18]
[342855582,1732183872011,-2278.01,0.00041369,18]
[342855583,1732183872020,-500.0,0.00041369,18]
[342855584,1732183872030,-500.0,0.00041369,18]
[342855585,1732183872040,-500.0,0.00041369,18]
[342855586,1732183872049,-1427.86,0.00041369,120]
[342855587,1732183872058,-500.0,0.00041369,18]
[342855588,1732183872068,-500.0,0.00041369,18]
[342855589,1732183872077,-500.0,0.00041369,18]
[342855590,1732183872087,-1409.13,0.00041369,18]
[342855591,1732183872097,-749.22,0.00041369,18]
[342855592,1732183872106,-1204.01,0.00041369,18]
[342855593,1732183872115,-779.96,0.00041369,18]
[342855594,1732183872237,-3189.74,0.00041369,18]
[342855595,1732183872247,-500.0,0.00041369,18]
[342855596,1732183872256,-500.0,0.00041369,18]
[342855597,1732183872266,-500.0,0.00041369,18]
[342855598,1732183872274,-1469.76,0.00041369,18]
[342855599,1732183872284,-500.0,0.00041369,18]
[342855600,1732183872295,-500.0,0.00041369,18]
[342855601,1732183872304,-500.0,0.00041369,18]
[342855602,1732183872314,-1008.38,0.00041369,18]
[342855603,1732183872323,-500.0,0.00041369,18]
[342855604,1732183872332,-3098.72,0.00041369,18]
[342855605,1732183872341,-500.0,0.00041369,18]
[342855606,1732183872350,-3283.99,0.00041369,18]
[342855607,1732183872359,-500.0,0.00041369,18]
[342855608,1732183872368,-500.0,0.00041369,18]
[342855609,1732183872377,-500.0,0.00041369,18]
[342855610,1732183872387,-500.0,0.00041369,18]
[342855611,1732183872397,-1064.97,0.00041369,18]
[342855612,1732183872406,-620.04,0.00041369,18]
[342855613,1732183872415,-137.36879537,0.00041369,18]
[342855614,1732183872439,-2247.22120463,0.00041369,18]
[342855615,1732183872449,-500.0,0.00041369,18]
[342855616,1732183872458,-500.0,0.00041369,18]
[342855617,1732183872467,-451.65951113,0.00041369,18]
[342855618,1732183872478,-48.34048887,0.00041369,18]
[342855619,1732183872487,-500.0,0.00041369,18]
[342855620,1732183872496,-500.0,0.00041369,18]
[342855621,1732183872505,-500.0,0.00041369,18]
[342855622,1732183872514,-1456.53,0.00041369,18]
[342855623,1732183872523,-930.18865845,0.00041369,18]
[342855624,1732183872535,-410.04134155,0.00041369,18]
[342855625,1732183872544,-500.0,0.00041369,18]
[342855626,1732183872553,-1913.39,0.00041369,18]
[342855627,1732183872563,-1345.69571214,0.00041369,18]
[342855628,1732183872574,-862.40428786,0.00041369,18]
[342855629,1732183872583,-99.28891696,0.00041369,18]
[342855630,1732183872594,-400.71108304,0.00041369,18]
[342855631,1732183872603,-500.0,0.00041369,18]
[342855632,1732183872612,-60.5609551,0.00041369,18]
[342855633,1732183872622,-439.4390449,0.00041369,18]
[342855634,1732183872631,-500.0,0.00041369,18]
[342855635,1732183872641,-60.5609551,0.00041369,18]
[342855636,1732183872657,-601.1690449,0.00041369,18]
[342855637,1732183872666,-500.0,0.00041369,18]
[342855638,1732183872674,-629.6769151,0.00041369,18]
[342855639,1732183872693,-534.9930849,0.00041369,18]
[342855640,1732183872705,-500.0,0.00041369,18]
[342855641,1732183872714,-149.42666517,0.00041369,18]
[342855642,1732183872733,-543.51,0.00041095,18]
[342855643,1732183872742,-491.66333483,0.00041369,18]
[342855644,1732183872751,-500.0,0.00041369,18]
[342855645,1732183872760,-556.5567062,0.00041369,18]
[342855646,1732183872770,-500.0,0.00041369,18]
[342855647,1732183872779,-500.0,0.00041369,18]
[342855648,1732183872788,-3223.61540647,0.00041369,18]
[342855649,1732183872808,-64.27459353,0.00041369,18]
[342855650,1732183872817,-576.59,0.00041369,18]
[342855651,1732183872827,-1753.57,0.00041369,18]
[342855652,1732183872836,-500.0,0.00041369,18]
[342855653,1732183872845,-500.0,0.00041369,18]
[342855654,1732183872855,-1058.06,0.00041369,18]
[342855655,1732183872864,-473.03387069,0.00041369,18]
[342855656,1732183872880,-26.96612931,0.00041369,18]
[342855657,1732183872889,-510.27,0.00041369,18]
[342855658,1732183872898,-500.0,0.00041369,18]
[342855659,1732183872908,-151.0,0.00041369,14]
[342855660,1732183872917,-618.7,0.00041369,18]
[342855661,1732183872927,-151.0,0.00041369,14]
[342855662,1732183872936,-151.0,0.00041369,14]
[342855663,1732183872947,-500.0,0.00041369,18]
[342855664,1732183872956,-1793.76,0.00041369,18]
[342855665,1732183872966,-151.0,0.00041369,14]
[342855666,1732183872976,-352.62344578,0.00041369,18]
[342855667,1732183872985,-1350.08,0.00041369,18]
[342855668,1732183872994,-873.06,0.00041369,18]
[342855669,1732183873004,-594.24,0.00041369,18]
[342855670,1732183873013,-500.0,0.00041369,18]
[342855671,1732183873022,-3474.35,0.00041369,18]
[342855672,1732183873031,-1132.1,0.00041369,18]
[342855673,1732183873040,-650.87,0.00041369,18]
[342855674,1732183873049,-500.0,0.00041369,18]
[342855675,1732183873058,-3763.65,0.00041369,18]
[342855676,1732183873066,-1573.3,0.00041369,18]
[342855677,1732183873076,-500.0,0.00041369,18]
[342855678,1732183873085,-500.0,0.00041369,18]
[342855679,1732183873097,-500.0,0.00041369,18]
[342855680,1732183873106,-981.92,0.00041369,18]
[342855681,1732183873114,-500.0,0.00041369,18]
[342855682,1732183873124,-500.0,0.00041369,18]
[342855683,1732183873133,-1157.3,0.00041369,18]
[342855684,1732183873142,-1969.85,0.00041369,18]
[342855685,1732183873151,-500.0,0.00041369,18]
[342855686,1732183873161,-500.0,0.00041369,18]
[342855687,1732183873170,-500.0,0.00041369,18]
[342855688,1732183873179,-2005.19,0.00041369,18]
[342855689,1732183873190,-870.95,0.00041369,18]
[342855690,1732183873199,-500.0,0.00041369,18]
[342855691,1732183873209,-500.0,0.00041369,18]
[342855692,1732183873219,-4103.26,0.00041369,18]
[342855693,1732183873229,-500.47,0.00041369,18]
[342855694,1732183873238,-500.0,0.00041369,18]
[342855695,1732183873248,-738.25,0.00041369,18]
[342855696,1732183873258,-151.0,0.00041369,14]
[342855697,1732183873268,-1015.63,0.00041369,18]
[342855698,1732183873277,-151.0,0.00041369,14]
[342855699,1732183873286,-151.0,0.00041369,14]
[342855700,1732183873296,-151.0,0.00041369,14]
[342855701,1732183873306,-151.0,0.00041369,14]
[342855702,1732183873316,-151.0,0.00041369,14]
[342855703,1732183873326,-500.0,0.00041369,18]
[342855704,1732183873335,-151.0,0.00041369,14]
[342855705,1732183873345,-151.0,0.00041369,14]
[342855706,1732183873355,-500.0,0.00041369,18]
[342855707,1732183873365,-554.5,0.00041369,18]
[342855708,1732183873375,-700.0,0.00041369,18]
[342855709,1732183873384,-500.0,0.00041369,18]
[342855710,1732183873393,-500.0,0.00041369,18]
[342855711,1732183873402,-500.0,0.00041369,18]
[342855712,1732183873411,-151.0,0.00041369,14]
[342855713,1732183873421,-500.0,0.00041369,18]
[342855714,1732183873430,-151.0,0.00041369,14]
[342855715,1732183873440,-1548.39,0.00041369,18]
[342855716,1732183873450,-151.0,0.00041369,14]
[342855717,1732183873459,-794.15,0.00041369,18]
[342855718,1732183873468,-854.08,0.00041369,18]
[342855719,1732183873478,-500.0,0.00041369,18]
[342855720,1732183873487,-919.59042491,0.00041369,18]
[342855721,1732183873504,-440.67957509,0.00041369,18]
[342855722,1732183873513,-932.30042491,0.00041369,18]
[342855723,1732183874456,-433.33,0.00040411,2]
[342855724,1732183874466,-150.0,0.00040817,2]
[342855725,1732183874477,-150.0,0.00040818,2]
[342855726,1732183874486,-150.0,0.00040822,2]
[342855727,1732183874495,-150.0,0.00040825,2]
[342855728,1732183874504,-150.0,0.00040827,2]